Cogmind - Beta 11.1 *** ADVENTURER MODE // 2022.10.08 @ 17:32:12 Player: heavymetalmidis Result: Destroyed by G-47 Trooper with Particle Gun Performance ------------- Evolutions (2) 1000 Regions Visited (6) 1200 Robots Destroyed (87) 435 Value Destroyed (2583) 2583 Prototype IDs (33) 660 Alien Tech Used (0) 0 Bonus (651) 651 TOTAL SCORE: 6529 Bonus ------- High Alert Combat Kills 351 Aligned with FarCom 300 Cogmind --------- Core Integrity 0/550 Matter 119/300 Energy 460/460 System Corruption 39% Temperature Cool (9) Movement Walking (120) Location -8/Storage Parts ------- > --- POWER (2) -------- Heavy Ion Engine Heavy Ion Engine > --- PROPULSION (3) --- Improved Aluminum Leg Carbon-fiber Leg Carbon-fiber Leg > --- UTILITY (4) ------ Advanced Heat Sink Medium Storage Unit Visual Processing Unit Improved Utility Shielding > --- WEAPON (2) ------- Enhanced Autogun Enhanced Autogun > --- INVENTORY (10) --- Heavy Ion Engine Heavy Ion Engine Carbon-fiber Leg Advanced Targeting Computer Advanced Targeting Computer Authchip [Weapon] Drone Bay (2/2) Enhanced Autogun Enhanced Autogun Peak State ------------ > --- POWER ------------ Heavy Ion Engine Heavy Ion Engine > --- PROPULSION ------- Improved Aluminum Leg Carbon-fiber Leg Carbon-fiber Leg > --- UTILITY ---------- Medium Storage Unit Visual Processing Unit Bomb Drone Bay > --- WEAPON ----------- Enhanced Autogun Enhanced Autogun > --- INVENTORY -------- Heavy Ion Engine Carbon-fiber Leg Advanced Heat Sink Experimental Sensor Array Advanced Targeting Computer Advanced Targeting Computer Improved Utility Shielding Enhanced Autogun Enhanced Autogun Enhanced Autogun [Rating: 43] Favorites ----------- Power Improved Ion Engine Engine Improved Ion Engine Power Core Light Nuclear Core Propulsion Aluminum Leg Leg Aluminum Leg Wheel Compact Wheel Utility Medium Storage Unit Device Trap Scanner Storage Medium Storage Unit Processor Transport Network Coupler Hackware System Shield Protection Hardened Medium Armor Plating Weapon Assault Rifle Energy Gun Field Laser Energy Cannon Latent Energy Streamer Ballistic Gun Assault Rifle Launcher Mini Grenade Launcher Special Weapon Mining Laser Build | -11 -10 -10 -10 -9 -8 -8 ------- Run | Scr Mat Min Exi Min Mat Sto Slots Evolved 4 | . . . . . 4 . Power 1 | . . . . . 1 . Propulsion 1 | . . . . . 1 . Utility 2 | . . . . . 2 . Weapon . | . . . . . . . Parts Attached 89 | 7 13 2 6 4 24 33 Power 16 | 1 1 1 2 . 4 7 Engine 13 | 1 1 1 2 . 2 6 Core 3 | . . . . . 2 1 Reactor . | . . . . . . . Propulsion 21 | 2 2 . . 2 6 9 Treads . | . . . . . . . Leg 16 | 2 2 . . 1 2 9 Wheel 5 | . . . . 1 4 . Hover . | . . . . . . . Flight . | . . . . . . . Utility 19 | 2 3 . 1 . 6 7 Device 7 | 1 . . . . 3 3 Storage 4 | 1 1 . 1 . . 1 Processor 3 | . 2 . . . 1 . Hackware 1 | . . . . . 1 . Protection 4 | . . . . . 1 3 Artifact . | . . . . . . . Weapon 33 | 2 7 1 3 2 8 10 Energy Gun 4 | 1 . . . . 2 1 Energy Cannon 5 | . . . . 1 2 2 Ballistic Gun 19 | 1 7 1 2 . 3 5 Ballistic Cannon . | . . . . . . . Launcher 4 | . . . . 1 1 2 Special Weapon 1 | . . . 1 . . . Impact Weapon . | . . . . . . . Slashing Weapon . | . . . . . . . Piercing Weapon . | . . . . . . . Special Melee Weapon . | . . . . . . . Unidentified Prototypes 3 | . . . . . 3 . Corrupted Parts 3 | . . . . 2 . 1 System Corruption 19 | . . . . 17 . 2 Parts Lost 19 | . . 1 2 1 1 14 Power 4 | . . 1 . . . 3 Propulsion 6 | . . . 1 1 1 3 Utility 4 | . . . . . . 4 Weapon 5 | . . . 1 . . 4 Highest Loss Streak 3 | . . 1 2 1 1 3 To Critical Strikes 1 | . . . . . . 1 Average Slot Usage (%) 88 | . 99 100 86 85 92 73 Engine 13 | . 14 14 14 14 14 11 Core 1 | . . . . . 3 1 Leg 17 | . 27 28 15 13 9 15 Wheel 2 | . . . . . 11 . Device 3 | . 2 . . . 5 11 Storage 11 | . 14 14 14 14 9 8 Processor 12 | . 11 14 14 14 12 9 Hackware 1 | . . . . . 6 . Energy Gun 1 | . . . . . 5 2 Energy Cannon 1 | . . . . 1 2 1 Ballistic Gun 18 | . 27 28 27 24 2 9 Launcher 2 | . . . . 1 7 3 Naked Turns . | . . . . . . . Heaviest Build 49 | 15 23 22 22 28 49 46 Greatest Support 48 | 20 20 20 20 16 48 43 Greatest Overweight (x) 10 | 4 6 1 1 9 10 10 Average Overweight (x) . | . . . . 1 1 1 Largest Inventory Capacity 10 | 8 10 10 10 10 10 10 Average Capacity 9 | 7 9 10 10 10 10 9 Most Carried 10 | 5 10 10 10 10 10 10 Average Carried 9 | 2 9 9 9 9 9 8 Final Capacity 10 | 8 10 10 10 10 10 10 Final Carried 10 | 4 10 9 10 10 10 9 Class Distribution -------------------- 70% | Mutant 11% | Hacker-Mutant 6% | Scavenger-Mutant 5% | Scavenger-Skirmisher 4% | Skirmisher Dominant Class ---------------- Mutant | -10/Materials Mutant | -10/Mines Mutant | -10/Exiles Mutant | -9/Mines Hacker-Mutant | -8/Materials Mutant | -8/Storage Resources | -11 -10 -10 -10 -9 -8 -8 ----------- Run | Scr Mat Min Exi Min Mat Sto Matter Collected 2128 | 276 286 136 122 150 469 689 Remotely 172 | 10 162 . . . . . Salvage Created 3452 | 61 302 97 . 219 1019 1754 Parts 179 | 2 28 . . 8 62 79 Haulers Intercepted 8 | . 2 . . . 3 3 Recyclers Shooed 3 | . . . . . . 3 Parts Field Recycled . | . . . . . . . Retrieved Matter . | . . . . . . . Parts Self-Destructed . | . . . . . . . Prevented . | . . . . . . . Kills | -11 -10 -10 -10 -9 -8 -8 ------- Run | Scr Mat Min Exi Min Mat Sto Combat Hostiles Destroyed 65 | . 9 8 . 2 19 27 Guns 40 | . 9 8 . . 6 17 AOE 24 | . . . . 2 12 10 Classes Destroyed 15 | 1 4 2 . 2 5 1 Worker 5 | . . . . 2 . 3 Builder 6 | . . . . . 3 3 Tunneler 1 | . . . . . . 1 Hauler 8 | . 2 . . . 3 3 Recycler 4 | 1 . . . 1 1 1 Watcher 5 | . 3 . . . 1 1 Swarmer 13 | . 8 . . . 3 2 Grunt 26 | . 1 . . 1 9 15 Brawler 3 | . . . . 1 1 1 Duelist 3 | . . . . . 1 2 Protector 1 | . . . . . 1 . Sentry 8 | . . . . . 3 5 Demolisher 3 | . . 1 . . . 2 Hunter 1 | . . . . . 1 . Assembled 7 | . . 7 . . . . Best Kill Streak 9 | 1 3 5 . 2 9 9 Combat Bots Only 9 | . 3 5 . 2 5 9 Max Kills in Single Turn 8 | 1 2 1 . 2 4 8 Gunslinging 1 | . 1 . . . . 1 Exploded 4 | . . . . 2 4 4 Melee . | . . . . . . . Uniques/NPCs Destroyed . | . . . . . . . Combat | -11 -10 -10 -10 -9 -8 -8 -------- Run | Scr Mat Min Exi Min Mat Sto Damage Taken 3607 | . 111 227 352 60 757 2100 Core 687 | . 7 25 89 12 146 408 Absorbed by Shields 264 | . . . . . . 264 Redirected to Shielding 37 | . . . . . . 37 Core Remaining (%) 73 | 100 . . . 46 . . Volleys Fired 219 | 2 35 24 3 9 59 87 Largest 2 | 2 2 2 1 2 2 2 Hottest 100 | 70 46 43 100 90 93 90 Shots Fired 342 | 4 70 47 3 17 70 131 Gun 298 | 4 70 47 . 12 53 112 Cannon 18 | . . . . 2 6 10 Launcher 23 | . . . . 3 11 9 Special 3 | . . . 3 . . . Kinetic 249 | 2 70 47 . 12 22 96 Thermal 52 | 2 . . 3 . 31 16 Explosive 23 | . . . . 3 11 9 Electromagnetic 18 | . . . . 2 6 10 Robot Hit Streak 36 | 4 11 12 . 3 20 36 Robot Miss Streak 3 | . 3 2 . 1 3 2 Penetration Max . | . . . . . . . Secondary Targets 6 | . 1 1 . . . 4 Max Gunslinging Chain 1 | . 1 1 . . . 1 Shots Hit Robots 259 | 4 53 37 . 7 54 104 Core Hits 165 | 2 19 19 . 9 43 73 Critical Kills . | . . . . . . . Critical Parts Destroyed . | . . . . . . . Critical Strikes 4 | . . . . . 3 1 Burn 4 | . . . . . 3 1 Melee Attacks . | . . . . . . . Impact . | . . . . . . . Slashing . | . . . . . . . Piercing . | . . . . . . . Sneak Attacks . | . . . . . . . Combat Hostiles . | . . . . . . . Follow-up Attacks . | . . . . . . . Damage Inflicted 7579 | 53 707 462 . 270 2733 3354 Guns 3691 | 53 698 462 . 69 725 1684 Cannons 61 | . . . . 13 17 31 Explosions 3802 | . . . . 185 1985 1632 Melee . | . . . . . . . Ramming 25 | . 9 . . 3 6 7 Kinetic 2975 | 28 698 462 . 69 285 1433 Thermal 716 | 25 . . . . 440 251 Explosive 896 | . . . . 24 656 216 Electromagnetic 2967 | . . . . 174 1346 1447 Impact . | . . . . . . . Slashing . | . . . . . . . Piercing . | . . . . . . . Highest Corruption 39 | . . . 5 27 15 39 Average Corruption 14 | . . . 5 5 12 29 Corruption Purged . | . . . . . . . Corruption Blocked . | . . . . . . . Effects 135 | . . . 21 23 17 74 Message Errors 31 | . . . 5 8 5 13 Matter Fused 30 | . . . 8 4 5 13 Heat Flow Errors 16 | . . . 3 4 2 7 Energy Discharges 14 | . . . 2 2 2 8 Parts Rejected 1 | . . . . . . 1 Data Loss (minor) 13 | . . . 1 3 1 8 Data Loss (major) 12 | . . . 2 1 2 7 Misfires 3 | . . . . 1 . 2 Alerts 2 | . . . . . . 2 Misdirections 4 | . . . . . . 4 Weapon Failures 9 | . . . . . . 9 Overload Shots . | . . . . . . . Overflow Damage 64 | . . . . 6 22 36 Projectiles . | . . . . . . . Explosions 64 | . . . . 6 22 36 Melee . | . . . . . . . Knockbacks . | . . . . . . . Impact . | . . . . . . . Kinetic . | . . . . . . . Secondary . | . . . . . . . Self-Inflicted Damage 443 | . . . . 61 163 219 Shots 14 | . . . . 2 5 7 Rammed 3 | . . . . . 1 2 Targets Rammed 6 | . 1 . . 1 1 3 Kicked 3 | . 1 . . 1 . 1 Crushed . | . . . . . . . Highest Temperature 479 | 18 4 4 276 197 479 275 Average Temperature 106 | 10 1 1 96 60 154 91 Received Heat Transfer 933 | . 12 . . . 198 723 Effects 8 | . . . . . 6 2 Shutdowns 2 | . . . . . 2 . Interference 5 | . . . . . 3 2 Damage (minor) 1 | . . . . . 1 . Siege Activations . | . . . . . . . Robots Corrupted 1 | . . . . . 1 . Combat Hostiles 1 | . . . . . 1 . Parts Fried 16 | . . . . . 8 8 Impact Corruptions . | . . . . . . . Robots Melted . | . . . . . . . Combat Hostiles . | . . . . . . . Parts Melted 2 | . . . . . 1 1 Heat Transferred 1887 | 74 . . . . 1184 629 Parts Sabotaged . | . . . . . . . Parts Stolen . | . . . . . . . Parts Stripped . | . . . . . . . Power Chain Reactions 1 | . . . . . . 1 Missiles Intercepted . | . . . . . . . Latent Energy Used 1924 | . . . . 202 815 907 LE Corruption 36 | . . . . 4 14 18 Alert | -11 -10 -10 -10 -9 -8 -8 ------- Run | Scr Mat Min Exi Min Mat Sto Peak Influence 809 | 5 220 20 . 174 635 809 Initial 156 | . 2 . . . 57 156 Average 185 | 3 59 10 . 7 287 428 Maximum Alert Level 3 | . 1 . . . 2 3 Low Security (%) 69 | 100 94 100 . 100 49 26 Level 1 9 | . 5 . . . 8 26 Level 2 17 | . . . . . 42 31 Level 3 3 | . . . . . . 15 Level 4 . | . . . . . . . Level 5 . | . . . . . . . High Security . | . . . . . . . Max Security . | . . . . . . . Squads Dispatched 19 | . 1 . . . 7 11 Investigation 2 | . 1 . . . 1 . Extermination . | . . . . . . . Reinforcement 5 | . . . . . 2 3 Assault 5 | . . . . . 1 4 Garrison 7 | . . . . . 3 4 Intercept . | . . . . . . . Searches Triggered . | . . . . . . . Construction Impeded 2 | . . . . . 1 1 Haulers Reinforced . | . . . . . . . Active Scanning Responses . | . . . . . . . Cargo Convoy Interrupts . | . . . . . . . Stealth | -11 -10 -10 -10 -9 -8 -8 --------- Run | Scr Mat Min Exi Min Mat Sto Distress Signals 5 | . . . . . 3 2 Communications Jammed . | . . . . . . . Distress Signals . | . . . . . . . Times Spotted 108 | . 17 16 . 2 29 44 Peak Tracking Total 11 | . 3 6 . 2 7 11 Tactical Retreats 9 | . . 2 . . 4 3 Traps | -11 -10 -10 -10 -9 -8 -8 ------- Run | Scr Mat Min Exi Min Mat Sto Traps Triggered 7 | . 3 . . . 2 2 Indirectly 1 | . . . . . . 1 Trap Hack Attempts . | . . . . . . . Triggered . | . . . . . . . Disarmed . | . . . . . . . Reprogrammed . | . . . . . . . Reused . | . . . . . . . Traps Extracted . | . . . . . . . Installed . | . . . . . . . Triggered . | . . . . . . . Machines | -11 -10 -10 -10 -9 -8 -8 ---------- Run | Scr Mat Min Exi Min Mat Sto Machines Disabled 13 | . . . . 1 6 6 Max in Single Turn 2 | . . . . 1 1 2 Garrison Access 1 | . . . . . . 1 Machines Sabotaged . | . . . . . . . Garrisons Compromised . | . . . . . . . Overloaded Fab Kills . | . . . . . . . Hacking | -11 -10 -10 -10 -9 -8 -8 --------- Run | Scr Mat Min Exi Min Mat Sto Machines Accessed 20 | . 8 . 2 1 4 5 Terminals 12 | . 6 . . . 2 4 Fabricators . | . . . . . . . Repair Stations 1 | . . . . . . 1 Recycling Units 2 | . 2 . . . . . Scanalyzers 2 | . . . . . 2 . Garrison Access . | . . . . . . . Total Hacks 42 | . 20 . 2 1 11 8 Successful 27 | . 12 . 2 1 9 3 Failed 15 | . 8 . . . 2 5 Catastrophic 2 | . . . . . 1 1 Database Lockouts . | . . . . . . . Manual 1 | . . . 1 . . . Terminals 28 | . 16 . . . 5 7 Fabricators . | . . . . . . . Repair Stations 1 | . . . . . . 1 Recycling Units 4 | . 4 . . . . . Scanalyzers 6 | . . . . . 6 . Garrison Access . | . . . . . . . Terminal Hacks 17 | . 9 . 2 1 3 2 Record 2 | . . . 1 . 1 . Part Schematic 1 | . . . . . . 1 Prototype ID Bank 3 | . 3 . . . . . Open Door 2 | . . . . 1 . 1 Alert Level 1 | . 1 . . . . . Unreport Threat 2 | . 1 . . . 1 . Transport Status 2 | . 2 . . . . . Hauler Manifests 2 | . 1 . . . 1 . Registered Components 1 | . 1 . . . . . EX-Prototype ID Bank 1 | . . . 1 . . . Fabricator Hacks . | . . . . . . . Repair Station Hacks 1 | . . . . . . 1 Scan Component 1 | . . . . . . 1 Recycling Unit Hacks 3 | . 3 . . . . . Retrieve Components 3 | . 3 . . . . . Scanalyzer 6 | . . . . . 6 . Insert Component 5 | . . . . . 5 . Analyze 1 | . . . . . 1 . Garrison Access Hacks . | . . . . . . . Unauthorized Hacks . | . . . . . . . Terminals . | . . . . . . . Fabricators . | . . . . . . . Repair Stations . | . . . . . . . Recycling Units . | . . . . . . . Scanalyzers . | . . . . . . . Garrison Access . | . . . . . . . Data Cores Recovered . | . . . . . . . Used . | . . . . . . . Hacking Detections 13 | . 5 . . . 4 4 Full Trace Events 1 | . . . . . . 1 Feedback Events . | . . . . . . . Feedback Blocked . | . . . . . . . Robot Schematics Acquired . | . . . . . . . Robots Built . | . . . . . . . Authchips . | . . . . . . . Time . | . . . . . . . Total Robot Build Rating . | . . . . . . . Part Schematics Acquired 2 | . . . . . 1 1 Parts Built . | . . . . . . . Authchips . | . . . . . . . Time . | . . . . . . . Total Part Build Rating . | . . . . . . . Parts Repaired . | . . . . . . . Time . | . . . . . . . Parts Recycled . | . . . . . . . Recycled Matter . | . . . . . . . Retrieved Matter . | . . . . . . . Retrieved Components 12 | . 12 . . . . . Parts Scanalyzed 1 | . . . . . 1 . Part Schematics Acquired 1 | . . . . . 1 . Parts Damaged . | . . . . . . . Bothacking | -11 -10 -10 -10 -9 -8 -8 ------------ Run | Scr Mat Min Exi Min Mat Sto Used RIF Installer . | . . . . . . . Robots Hacked . | . . . . . . . Non-combat . | . . . . . . . Combat . | . . . . . . . Robot Hacks Applied . | . . . . . . . Relay Couplers Released 3 | . . . . . . 3 Machine Destruction 3 | . . . . . . 3 Fabnet Peak Effective % . | . . . . . . . Robots Rewired . | . . . . . . . Allies Hacked . | . . . . . . . Hacks Repelled . | . . . . . . . Allies | -11 -10 -10 -10 -9 -8 -8 -------- Run | Scr Mat Min Exi Min Mat Sto Total Allies 4 | . . 2 . . . 2 Largest Group 2 | . . 2 2 . . 2 Highest-Rated Group 62 | . . 43 43 . . 62 Highest-Rated Ally 31 | . . 31 31 . . 31 Total Orders 3 | . . . . . . 3 ROAM 1 | . . . . . . 1 RETURN 2 | . . . . . . 2 Ally Attacks 21 | . . . . . . 21 Total Damage 82 | . . . . . . 82 Kills . | . . . . . . . Allies Corrupted . | . . . . . . . Allies Melted . | . . . . . . . Intel | -11 -10 -10 -10 -9 -8 -8 ------- Run | Scr Mat Min Exi Min Mat Sto Robot Analysis Total . | . . . . . . . Derelict Logs Recovered 4 | . . 2 . 2 . . Drone Launches 34 | . . . . . . 34 Drone Recoveries 18 | . . . . . . 18 Exploration | -11 -10 -10 -10 -9 -8 -8 ------------- Run | Scr Mat Min Exi Min Mat Sto Turns Passed 6183 | 109 1272 373 1135 955 1072 1267 Spaces Moved 3086 | 65 893 183 591 478 374 502 Core 63 | 10 1 . . 2 2 48 Treads . | . . . . . . . Legs 2730 | 55 892 183 591 451 104 454 Wheels 293 | . . . . 25 268 . Hover . | . . . . . . . Flight . | . . . . . . . Fastest Speed 50 | 50 120 120 120 115 100 120 Average Speed 162 | 124 125 163 187 191 147 188 Slowest Speed 550 | 250 350 190 190 500 550 550 Overloaded Moves . | . . . . . . . Propulsion Burnouts . | . . . . . . . Robots Hopped . | . . . . . . . Cave-ins Triggered 1 | . . . 1 . . . Exploration Rate (%) 65 | 5 99 54 92 96 36 79 Regions Visited 6 Branch Regions 4 Pre-discovered Areas 1 | . . 1 . . . . Known Exits Taken 1 | . . . . . 1 . Unknown Exits Taken 5 | 1 1 1 1 1 . . Scrap Searched 4 | . . 1 . 3 . . Spaces Dug 43 | . . . 3 12 21 7 Terrain Destroyed 303 | . . . 3 46 118 136 Melee . | . . . . . . . Projectile 3 | . . . 3 . . . AOE 300 | . . . . 46 118 136 Terrain Rammed . | . . . . . . . Walls Destroyed . | . . . . . . . Machines Disabled . | . . . . . . . Actions | -11 -10 -10 -10 -9 -8 -8 --------- Run | Scr Mat Min Exi Min Mat Sto Total 3946 | 87 982 212 610 504 838 713 Wait 429 | 7 7 4 . . 347 64 Move 3080 | 64 892 182 590 477 373 502 Hop . | . . . . . . . Pick Up 58 | 7 19 . 5 6 11 10 Fast Attach 37 | 4 4 . 1 2 10 16 Attach 25 | 3 2 1 2 . 7 10 Detach 11 | . . . 1 . 6 4 Swap 27 | . 7 1 3 2 7 7 Drop 54 | . 15 . 5 7 17 10 Fire 219 | 2 35 24 3 9 59 87 Melee . | . . . . . . . Ram 3 | . . . . . 1 2 Kick 3 | . 1 . . 1 . 1 Crush . | . . . . . . . Escape Stasis . | . . . . . . . Rewire . | . . . . . . . Trap . | . . . . . . . Miscellaneous . | . . . . . . . Route ------- -11/Scrapyard -10/Materials (discovered 5 exits: [*Mat x3] / [*Min x2]) -10/Mines -10/Exiles (discovered 2 exits: *Min x2) -9/Mines (discovered 2 exits: *Mat x2) -8/Materials (discovered 4 exits: *Fac x3 / *Sto) -8/Storage History --------- Turn | Location | Event 13 | -11/Scrapyard | Discovered new exit (range 16) 110 | -11/Scrapyard | Entered Materials 304 | -10/Materials | Discovered new exit (range 8) 309 | -10/Materials | Build established: Mutant 349 | -10/Materials | Discovered new exit (range 8) 754 | -10/Materials | Discovered new exit (range 16) 1120 | -10/Materials | Discovered new exit (range 11) 1231 | -10/Materials | Discovered new exit (range 15) 1382 | -10/Materials | Entered Mines 1383 | -10/Mines | Assembled infested the area 1388 | -10/Mines | Assisted by a Guerilla fighting off Assembled 1419 | -10/Mines | Learned location of Storage (-8) 1564 | -10/Mines | Learned 4 Materials zone layouts 1679 | -10/Mines | Learned location of 1 exit from Materials 1703 | -10/Mines | Deemed a non-threat by the Exiles lab entrance 1703 | -10/Mines | Discovered new exit (range 5) 1755 | -10/Mines | Entered Exiles 1755 | -10/Exiles | Accompanied by 2 allies 1785 | -10/Exiles | Led the pair of lost Derelicts to a safe place 1819 | -10/Exiles | Met 8R-AWN 1844 | -10/Exiles | Crushed by falling debris 1871 | -10/Exiles | Discovered new exit (range 14) 1958 | -10/Exiles | Met EX-HEX 2060 | -10/Exiles | Met EX-DEC 2103 | -10/Exiles | Visited The Gauntlet 2429 | -10/Exiles | Discovered new exit (range 11) 2569 | -10/Exiles | Met EX-BIN 2596 | -10/Exiles | Aligned with FarCom system 2598 | -10/Exiles | Given EX-Vault access code 2698 | -10/Exiles | Opened EX-Vault 2710 | -10/Exiles | Found Latent Energy Streamer 2753 | -10/Exiles | Warned to stay clear of 0b10 Research branches 2890 | -10/Exiles | Left Exiles lab with Latent Energy Streamer 2890 | -10/Exiles | Entered Mines 2935 | -9/Mines | Found the Drone Emporium 2961 | -9/Mines | Found Prototype Device 3044 | -9/Mines | Learned 8 Materials zone layouts 3052 | -9/Mines | Found a damaged Exp. Sensor Array with a note attached 3056 | -9/Mines | Found Prototype Device 3415 | -9/Mines | Found a hidden stash of uninstalled traps 3455 | -9/Mines | Learned 2 Materials zone layouts 3473 | -9/Mines | Received a Rocket Launcher from a helpful Derelict 3665 | -9/Mines | Discovered new exit (range 3) 3799 | -9/Mines | System corruption reached 10% 3817 | -9/Mines | Discovered new exit (range 9) 3819 | -9/Mines | Core integrity fell below 50% 3845 | -9/Mines | Entered Materials 3845 | -8/Materials | Evolved 4 slots: Power x1, Propulsion x1, Utility x2 3846 | -8/Materials | Identified exit to Factory 3847 | -8/Materials | Identified exit to Storage 4028 | -8/Materials | Identified Exp. Sensor Array 4031 | -8/Materials | Identified Bomb Drone Bay 4333 | -8/Materials | Build established: Hacker-Mutant 4355 | -8/Materials | Garrison activated, responded to threat 4525 | -8/Materials | System corruption reached 10% 4645 | -8/Materials | First assault squad dispatched 4917 | -8/Materials | Entered Storage 5110 | -8/Storage | Garrison activated, responded to threat 5457 | -8/Storage | Garrison activated, responded to threat 5497 | -8/Storage | Core integrity fell below 50% 5617 | -8/Storage | Lost 3 parts (2p1w) 5619 | -8/Storage | System corruption reached 30% 5637 | -8/Storage | Core integrity fell below 20% 5778 | -8/Storage | Lost 3 parts (1n2u) 5825 | -8/Storage | Met a pair of Derelict thieves 6028 | -8/Storage | Destroyed 9 combat bots 6117 | -8/Storage | First assault squad dispatched 6184 | -8/Storage | Destroyed by G-47 Trooper with Particle Gun Last Messages --------------- 06130_ K-01 Serf collects debris. 06130_ ALERT: Hostiles spotted, dispatching reinforcements to Terminal S010. 06134_ Acquired 8 matter. 06134_ K-01 Serf collects debris. 06135_ System corrupted: Matter fused (-8). 06138_ K-01 Serf collects debris. 06144_ Connecting with Door Terminal... 06146_ Dropped Bomb Drone Bay. 06149_ Acquired Authchip [Weapon]. 06160_ System corrupted: Energy discharge (-161). 06165_ Connecting with Door Terminal... >>Open(Door) Sealed Heavy Doors opened. 06168_ Dropped Enh. Autogun. 06169_ Acquired Drone Bay. 06172_ C-30 ARC bursts open, deploying its payload. 06172_ L-31 Rogue unfolds itself. 06176_ System corrupted: Substantial component data lost. 06183_ L-31 Rogue destroyed. Map ----- +----------------------------------------------------+ | | | | | | | | | | | | | | | | | | | | | | | | | ?????????????????????????????????????????????????? | | ##???????????????????????Y???????????????????????? | | ###????????????????????????????????????????????? | | #????????????????????????????????????????????? | | #????????????????????????????????????????????? | | ## ###################???????????????????????????? | | ?# #???????????????????????????? | | ?####### ##### #???????????????????????????? | | ???????# #???????? #?????????????????o?????????? | | ???????# #????????? +???????????????????????????? | | ???????# #?????????# #########???????????????????? | | ???????# #???####### ## # !!!#???????????????????? | | ???????# #???#!!" # #lg[ #???????????????????? | | ???????# #???#!!! d i/g#@!!!#??????? ?????????? | | ???????# #???#! " # #T######??????? #????????? | | ??""""?# #???####T## ####???????????? #????????? | | ?## ### #####??#### #??????????????? g #????????? | | ?#T # # # ###???#d#??????????????? #????????? | | ### ###+########### #####??????????? #????????? | | # #! #!# #??????????? #????????? | | + / ## # #??????????# #????????? | | # #% ## # #??????????# #????????? | | # # % # # #??????????# #????????? | | # # % # =!#???????#### ##?#?????? | | # ##" "#/# +=*%#???????# # #?????? | | # ##"R"#% %! %[%#??????## g #??????? | | ### ##"" ! +######### * #??????? | | "# ###### % = *g! #??????? | | "" % % ] * % =g! #??????? | | % % % #??????? | | = % !#! ######## #?????? | | # ### ##% #[ #??????# ##?????? | | #" # #?????=]] #????? | | ^ ## # #???? =]]# """"" #????? | | ## # #??? ]]]# """"" #????? | | ## # #?? # """"" #????? | | = ## # #? ?# #????? | | %=% ## # / ?# ""?????????? | +----------------------------------------------------+ Best States ------------- Heat Dissipation 50 Energy Generation 23 Energy Capacity 460 Matter Stores 300 Matter Capacity 300 Sight Range 18 Terrain Scan Density 10 ECM Strength 1 Armor Coverage 225 Resistance: KI 20 Resistance: TH 20 Resistance: EX 20 Resistance: EM 20 Resistance: I 20 Resistance: S 20 Resistance: P 20 Utility Shielding 66 Evasion (%) 55 Targeting Accuracy 5 Offensive Hacking 10 Defensive Hacking 10 Authchip Count 1 Item Schematics ----------------- Trap Scanner | -8/Materials | Scanalyzed EM Disruption Field | -8/Storage | Hacked Robot Schematics ------------------ None Fabricated ------------ Nothing Alien Tech Used ----------------- None Achievements -------------- I Survived The Infestation Let's See Who's Tougher Release The Drones! Challenges ------------ None Game ------ Seed GyrokineticAngularFalx Manual? 0 Play Time 02:18:19 Cumulative 27.1 hours Start 2022.10.08 @ 12:48:45 End 2022.10.08 @ 17:32:12 Sessions 1 Manual Loads 0 Difficulty Adventurer Special Mode None Game No. 7 Rogue 0 Adventurer 1 Explorer 6 Win Type - Total 0 Types 0/0/0/0/0/0/0/0/0 Lore% 18 Gallery% 21 Achievement% 23 Wizard Run 0 Options --------- ASCII 0 Keyboard 1 Movement Numpad Keybinds 0 Fullscreen 2 Font 18/Smallcaps Map View 76x50 Tactical HUD 1 Map Filters NONE Filters NONE Steam 1 RUN: 77aff1f0-7b7f-4520-9d22-bc0fdb78c565